lending/lending_fUSD_20251022
["ID","MTS","AMOUNT","RATE_DAILY","PERIOD"]
[392058846,1761131433440,-244.42365491,0.00031999,2]
[392058849,1761131433449,-150.0,0.00031999,2]
[392058850,1761131433459,-151.43004729,0.00031999,2]
[392058852,1761131433468,-500.0,0.00031999,2]
[392058854,1761131433477,-500.0,0.00031999,2]
[392058856,1761131433486,-500.0,0.00031999,2]
[392058859,1761131433497,-150.0,0.00031999,2]
[392058861,1761131433506,-150.0,0.00031999,2]
[392058862,1761131433516,-29839.26711884,0.00032,2]
[392058864,1761131433525,-475.34,0.00032041,2]
[392058867,1761131433540,-696.1,0.00032041,2]
[392058869,1761131433551,-500.0,0.00032054,2]
[392058871,1761131433560,-500.0,0.00032054,2]
[392058873,1761131433570,-500.0,0.00032054,2]
[392058875,1761131433579,-500.0,0.00032054,2]
[392058877,1761131433588,-500.0,0.00032054,2]
[392058879,1761131433598,-181.75197015,0.00032054,2]
[392058881,1761131433611,-151.89863775,0.00032054,2]
[392058883,1761131433621,-500.0,0.00032054,2]
[392058885,1761131433631,-500.0,0.00032054,2]
[392058887,1761131433641,-500.0,0.00032054,2]
[392058889,1761131433650,-500.0,0.00032054,2]
[392058891,1761131433659,-1000.0,0.00032107,2]
[392058893,1761131433669,-258.28035432,0.00032109,2]
[392058895,1761131433678,-215.94026784,0.00032109,2]
[392058897,1761131433687,-500.0,0.00032109,2]
[392058899,1761131433697,-500.0,0.00032109,2]
[392058901,1761131433706,-500.0,0.00032109,2]
[392058903,1761131433716,-500.0,0.00032109,2]
[392058905,1761131433725,-500.0,0.00032109,2]
[392058907,1761131433734,-500.0,0.00032109,2]
[392058909,1761131433743,-350.22106936,0.00032109,2]
[392058911,1761131433753,-150.0,0.00032111,2]
[392058913,1761131433763,-500.0,0.00032111,2]
[392058915,1761131433773,-443.0,0.00032111,2]
[392058917,1761131433783,-150.0,0.00032111,2]
[392058919,1761131433792,-500.0,0.00032111,2]
[392058921,1761131433801,-540.0,0.00032111,2]
[392058923,1761131433810,-339.11,0.00032111,2]
[392058925,1761131433819,-500.0,0.00032163,2]
[392058927,1761131433828,-500.0,0.00032163,2]
[392058929,1761131433838,-250.0,0.00032163,2]
[392058931,1761131433847,-500.0,0.00032163,2]
[392058933,1761131433856,-216.8255896,0.00032163,2]
[392058935,1761131433865,-300.0,0.00032163,2]
[392058937,1761131433875,-150.0,0.00032166,2]
[392058939,1761131433884,-500.0,0.00032166,2]
[392058941,1761131433894,-443.0,0.00032166,2]
[392058943,1761131433904,-150.0,0.00032166,2]
[392058945,1761131433913,-500.0,0.00032166,2]
[392058947,1761131433922,-540.0,0.00032166,2]
[392058949,1761131433933,-250.0,0.00032218,2]
[392058951,1761131433943,-500.0,0.00032218,2]
[392058953,1761131433952,-500.0,0.00032218,2]
[392058955,1761131433962,-150.0,0.00032221,2]
[392058957,1761131433971,-450.0,0.00032221,2]
[392058959,1761131433980,-443.0,0.00032221,2]
[392058961,1761131433990,-150.0,0.00032221,2]
[392058962,1761131433999,-500.0,0.00032221,2]
[392058963,1761131434009,-540.0,0.00032221,2]
[392058964,1761131434019,-500.0,0.00032273,2]
[392058965,1761131434028,-500.0,0.00032273,2]
[392058966,1761131434038,-658.89,0.00032273,7]
[392058968,1761131434047,-202.87028618,0.00032275,2]
[392058970,1761131434057,-443.0,0.00032275,2]
[392058972,1761131434067,-179.31213936,0.00032275,2]
[392058974,1761131434076,-500.0,0.00032275,2]
[392058975,1761131434086,-416.79605905,0.00032275,2]
[392058976,1761131434099,-123.20394095,0.00032275,2]
[392058977,1761131434117,-181.12347248,0.00032328,2]
[392058978,1761131434131,-318.87652752,0.00032328,2]
[392058979,1761131434141,-500.0,0.00032328,2]
[392058980,1761131434170,-443.0,0.0003233,2]
[392058981,1761131434188,-500.0,0.0003233,2]
[392058982,1761131434206,-540.0,0.0003233,2]
[392058983,1761131434221,-500.0,0.00032383,2]
[392058984,1761131434241,-500.0,0.00032383,2]
[392058985,1761131434259,-443.0,0.00032385,2]
[392058986,1761131434272,-500.0,0.00032385,2]
[392058987,1761131434288,-540.0,0.00032385,2]
[392058988,1761131434305,-500.0,0.00032437,2]
[392058989,1761131434322,-218.59380048,0.00032437,2]
[392058990,1761131434344,-281.40619952,0.00032437,2]
[392058991,1761131434361,-443.0,0.0003244,2]
[392058992,1761131434376,-500.0,0.0003244,2]
[392058993,1761131434392,-540.0,0.0003244,2]
[392058994,1761131434410,-1357.15040634,0.00032449,2]
[392058995,1761131434428,-305.8073805,0.00032492,2]
[392058996,1761131434470,-194.1926195,0.00032492,2]
[392058997,1761131434487,-500.0,0.00032492,2]
[392058998,1761131434500,-443.0,0.00032495,2]
[392058999,1761131434512,-500.0,0.00032495,2]
[392059000,1761131434527,-540.0,0.00032495,2]
[392059001,1761131434543,-1075.3139,0.00032524,2]
[392059002,1761131434564,-1094.7,0.0003253,2]
[392059003,1761131434581,-500.0,0.00032547,2]
[392059004,1761131434597,-500.0,0.00032547,2]
[392059005,1761131434618,-146.41873417,0.00032547,7]
[392059006,1761131434640,-512.47126583,0.00032547,7]
[392059007,1761131434657,-443.0,0.00032549,2]
[392059008,1761131434674,-500.0,0.00032549,2]
[392059009,1761131434691,-540.0,0.00032549,2]
[392059010,1761131434707,-168.0,0.00032587,7]
[392059011,1761131434723,-394.80091288,0.00032602,2]
[392059025,1761131438241,-29.3425194,0.00032602,2]
[392059027,1761131438251,-364.34845538,0.00032602,2]
[392059028,1761131438347,-135.65154462,0.00032602,2]
[392059029,1761131438357,-443.0,0.00032604,2]
[392059030,1761131438367,-500.0,0.00032604,2]
[392059031,1761131438377,-540.0,0.00032604,2]
[392059032,1761131438387,-168.0,0.00032625,2]
[392059033,1761131438397,-500.0,0.00032644,7]
[392059034,1761131438406,-500.0,0.00032644,7]
[392059035,1761131438415,-269.74045857,0.00032657,2]
[392059036,1761131438425,-443.0,0.00032659,2]
[392059037,1761131438436,-500.0,0.00032659,2]
[392059038,1761131438446,-540.0,0.00032659,2]
[392059039,1761131438456,-1357.15040626,0.00032677,2]
[392059040,1761131438466,-7726.5129565,0.00032704,2]
[392059041,1761131438476,-3148.155566,0.00032704,2]
[392059042,1761131438486,-443.0,0.00032714,2]
[392059043,1761131438496,-500.0,0.00032714,2]
[392059044,1761131438506,-540.0,0.00032714,2]
[392059045,1761131438516,-168.0,0.00032722,2]
[392059046,1761131438525,-163.94,0.00032726,2]
[392059047,1761131438537,-205.89233022,0.00032728,2]
[392059048,1761131438547,-443.0,0.00032769,2]
[392059049,1761131438557,-540.0,0.00032769,2]
[392059051,1761131438567,-211.67148359,0.00032801,2]
[392059053,1761131438578,-2218.81693824,0.00032801,2]
[392059055,1761131438590,-281.18306176,0.00032801,2]
[392059057,1761131438600,-658.89,0.00032821,7]
[392059059,1761131438610,-443.0,0.00032823,2]
[392059061,1761131438621,-540.0,0.00032823,2]
[392059062,1761131438631,-500.0,0.00032877,2]
[392059063,1761131438640,-443.0,0.00032878,2]
[392059064,1761131438650,-540.0,0.00032878,2]
[392059065,1761131438660,-5000.0,0.0003288,2]
[392059066,1761131438670,-2841.4999902,0.0003289,34]
[392059067,1761131438681,-139431.35081108,0.0003289,34]
[392059068,1761131438692,-1334.21238498,0.0003289,3]
[392059069,1761131438704,-363.50002513,0.0003289,3]
[392059070,1761131438716,-19173.00016009,0.0003289,3]
[392059071,1761131438727,-151.0,0.0003289,30]
[392059072,1761131438736,-151.0,0.0003289,30]
[392059073,1761131438746,-625.243059,0.0003289,30]
[392059074,1761131438756,-625.243059,0.0003289,30]
[392059075,1761131438765,-625.243059,0.0003289,30]
[392059076,1761131438775,-625.243059,0.0003289,30]
[392059077,1761131438784,-191.00811281,0.0003289,7]
[392059078,1761131438794,-4629.0874911,0.00032891,3]
[392059079,1761131438805,-14081.1908316,0.00032891,3]
[392059080,1761131438816,-2160.4342475,0.00032891,3]
[392059081,1761131438826,-3074.11330589,0.000329,120]
[392059082,1761131438838,-506.76990716,0.000329,120]
[392059083,1761131438850,-1243.3965464,0.000329,120]
[392059084,1761131438862,-5977.7724524,0.000329,120]
[392059085,1761131438874,-5390.81359829,0.000329,120]
[392059086,1761131438886,-14375.73789312,0.000329,120]
[392059087,1761131438903,-339.88265974,0.000329,120]
[392059088,1761131438915,-1073.2722,0.000329,120]
[392059095,1761131440300,-2146.19439324,0.00032408,2]
[392059096,1761131440312,-4432.96509646,0.00032408,2]
[392059097,1761131440321,-11464.90703823,0.000329,120]
[392059098,1761131440330,-190.80325287,0.000329,2]
[392059099,1761131440340,-776.74,0.000329,120]
[392059100,1761131440349,-151.0,0.000329,30]
[392059101,1761131440358,-151.0,0.000329,30]
[392059102,1761131440367,-625.243059,0.000329,30]
[392059103,1761131440376,-625.243059,0.000329,30]
[392059104,1761131440386,-625.243059,0.000329,30]
[392059105,1761131440395,-625.243059,0.000329,30]
[392059106,1761131440405,-500.0,0.000329,2]
[392059107,1761131440414,-158.945871,0.00032901,14]
[392059108,1761131440426,-151.0,0.00032901,30]
[392059109,1761131440436,-151.0,0.00032901,30]
[392059110,1761131440446,-316.396213,0.00032901,30]
[392059111,1761131440455,-316.396213,0.00032901,30]
[392059112,1761131440465,-316.396213,0.00032901,30]
[392059113,1761131440474,-316.396213,0.00032901,30]
[392059114,1761131440483,-155.791697,0.00032901,30]
[392059115,1761131440493,-420.0215,0.00032901,30]
[392059116,1761131440502,-420.0215,0.00032901,30]
[392059117,1761131440512,-420.0215,0.00032901,30]
[392059118,1761131440521,-420.0215,0.00032901,30]
[392059119,1761131440535,-41741.4251403,0.00032902,3]
[392059120,1761131440545,-1357.15040626,0.00032906,2]
[392059121,1761131440554,-1000.0,0.0003291,2]
[392059122,1761131440563,-1000.0,0.00032911,2]
[392059123,1761131440573,-1000.0,0.00032911,2]
[392059124,1761131440583,-1000.0,0.00032911,2]
[392059125,1761131440592,-151.0,0.00032911,30]
[392059126,1761131440601,-151.0,0.00032911,30]
[392059127,1761131440612,-151.0,0.00032911,30]
[392059128,1761131440621,-72482.37367023,0.00032912,2]
[392059129,1761131440630,-302.25,0.00032912,2]
[392059130,1761131440639,-512.82661382,0.00032912,2]
[392059131,1761131440648,-151.0,0.00032912,30]
[392059132,1761131440657,-151.0,0.00032912,30]
[392059133,1761131440667,-234.14004,0.00032912,30]
[392059134,1761131440677,-200.0,0.00032912,2]
[392059135,1761131440689,-285.63780193,0.00032912,2]
[392059136,1761131440699,-316.396213,0.00032912,30]
[392059137,1761131440708,-316.396213,0.00032912,30]
[392059138,1761131440718,-316.396213,0.00032912,30]
[392059139,1761131440727,-316.396213,0.00032912,30]
[392059140,1761131440737,-420.0215,0.00032912,30]
[392059141,1761131440747,-420.0215,0.00032912,30]
[392059142,1761131440757,-420.0215,0.00032912,30]
[392059143,1761131440766,-420.0215,0.00032912,30]
[392059144,1761131440775,-880.03913,0.00032912,2]
[392059145,1761131440784,-151.0,0.00032912,30]
[392059146,1761131440793,-151.0,0.00032912,30]
[392059147,1761131440803,-625.243059,0.00032912,30]
[392059148,1761131440812,-625.243059,0.00032912,30]
[392059149,1761131440825,-625.243059,0.00032912,30]
[392059150,1761131440834,-625.243059,0.00032912,30]
[392059151,1761131440844,-500.0,0.00032932,2]
[392059152,1761131440853,-443.0,0.00032933,2]
[392059153,1761131440862,-540.0,0.00032933,2]
[392059154,1761131440871,-10435.3562851,0.00032935,3]
[392059155,1761131440881,-484.17530724,0.00032957,2]
[392059156,1761131440891,-10435.3562851,0.00032969,3]
[392059157,1761131440901,-10435.3562851,0.0003297,3]
[392059158,1761131440910,-151.0,0.0003297,30]
[392059159,1761131440919,-296.618415,0.0003297,30]
[392059160,1761131440929,-625.243059,0.0003297,30]
[392059161,1761131440944,-625.243059,0.0003297,30]
[392059162,1761131440953,-625.243059,0.0003297,30]
[392059163,1761131440962,-625.243059,0.0003297,30]
[392059164,1761131440972,-31306.0688552,0.0003297,3]
[392059165,1761131440981,-160.12760949,0.00032973,2]
[392059166,1761131440991,-345.68088519,0.00032973,5]
[392059167,1761131441000,-306.6,0.00032978,30]
[392059168,1761131441010,-500.0,0.00032978,120]
[392059169,1761131441020,-776.74,0.00032978,120]
[392059170,1761131441029,-500.0,0.00032978,2]
[392059171,1761131441039,-31306.0688552,0.00032979,3]
[392059172,1761131441049,-151.0,0.00032979,30]
[392059173,1761131441058,-151.0,0.00032979,30]
[392059174,1761131441068,-155.7016531,0.00032979,2]
[392059175,1761131441081,-844.2983469,0.00032979,2]
[392059176,1761131441091,-51.26915308,0.00032979,3]
[392059177,1761131441103,-332.57952245,0.00032979,3]
[392059178,1761131441114,-5842.27407139,0.00032979,3]
[392059199,1761131443362,-285.63780194,0.00032979,2]
[392059201,1761131443372,-4209.23353818,0.00032979,3]
[392059203,1761131443382,-37.80283877,0.0003298,30]
[392059206,1761131443394,-113.19716123,0.0003298,30]
[392059208,1761131443404,-151.0,0.0003298,30]
[392059210,1761131443413,-108.14332906,0.0003298,30]
[392059212,1761131443425,-208.25288394,0.0003298,30]
[392059214,1761131443434,-185.40951605,0.0003298,30]
[392059216,1761131443449,-130.98669695,0.0003298,30]
[392059217,1761131443458,-316.396213,0.0003298,30]
[392059219,1761131443468,-316.396213,0.0003298,30]
[392059220,1761131443478,-420.0215,0.0003298,30]
[392059222,1761131443487,-420.0215,0.0003298,30]
[392059224,1761131443497,-420.0215,0.0003298,30]
[392059225,1761131443507,-420.0215,0.0003298,30]
[392059228,1761131443518,-151.0,0.0003298,30]
[392059230,1761131443528,-625.243059,0.0003298,30]
[392059232,1761131443541,-625.243059,0.0003298,30]
[392059234,1761131443550,-625.243059,0.0003298,30]
[392059236,1761131443559,-625.243055,0.0003298,30]
[392059237,1761131443569,-73047.4939956,0.0003298,3]
[392059238,1761131443579,-400.0,0.00032987,2]
[392059239,1761131443589,-443.0,0.00032988,2]
[392059240,1761131443598,-540.0,0.00032988,2]
[392059241,1761131443607,-10435.3562851,0.00032989,3]
[392059242,1761131443618,-151.0,0.00032989,30]
[392059243,1761131443628,-151.0,0.00032989,30]
[392059244,1761131443638,-316.396213,0.00032989,30]
[392059245,1761131443649,-316.396213,0.00032989,30]
[392059246,1761131443659,-316.396213,0.00032989,30]
[392059247,1761131443670,-316.396213,0.00032989,30]
[392059248,1761131443680,-420.0215,0.00032989,30]
[392059249,1761131443696,-420.0215,0.00032989,30]
[392059250,1761131443706,-420.0215,0.00032989,30]
[392059251,1761131443716,-420.0215,0.00032989,30]
[392059252,1761131443726,-500.0,0.00032989,120]
[392059253,1761131443735,-776.74,0.00032989,120]
[392059254,1761131443745,-500.0,0.00032989,2]
[392059255,1761131443753,-316.396213,0.0003299,30]
[392059256,1761131443762,-316.396213,0.0003299,30]
[392059258,1761131443771,-316.396213,0.0003299,30]
[392059260,1761131443780,-316.396205,0.0003299,30]
[392059261,1761131443790,-420.0215,0.0003299,30]
[392059262,1761131443798,-420.0215,0.0003299,30]
[392059263,1761131443808,-420.0215,0.0003299,30]
[392059264,1761131443817,-420.0215,0.0003299,30]
[392059265,1761131443826,-1000.0,0.0003299,2]
[392059266,1761131443835,-1000.0,0.0003299,2]
[392059267,1761131443844,-1000.0,0.0003299,2]
[392059268,1761131443854,-1000.0,0.0003299,2]
[392059269,1761131443863,-1000.0,0.0003299,2]
[392059270,1761131443872,-219.0,0.0003299,2]
[392059271,1761131443881,-156.656,0.00032998,2]
[392059272,1761131443891,-1000.0,0.00032998,2]
[392059273,1761131443901,-1000.0,0.00032999,15]
[392059274,1761131443910,-698.23739172,0.00032999,15]
[392059275,1761131443922,-301.76260828,0.00032999,15]
[392059276,1761131443932,-926.30138552,0.00032999,15]
[392059277,1761131443956,-73.69861448,0.00032999,15]
[392059278,1761131443965,-333.46251519,0.00032999,15]
[392059279,1761131443976,-606.3684978,0.00032999,15]
[392059280,1761131443988,-60.16898701,0.00032999,15]
[392059281,1761131443998,-1000.0,0.00032999,15]
[392059282,1761131444008,-102.147454,0.00032999,15]
[392059283,1761131444020,-683.95731502,0.00032999,15]
[392059284,1761131444032,-213.89523098,0.00032999,15]
[392059285,1761131444043,-1000.0,0.00032999,15]
[392059286,1761131444052,-1000.0,0.00032999,15]
[392059287,1761131444062,-299.32814152,0.00032999,15]
[392059288,1761131444075,-700.67185848,0.00032999,15]
[392059289,1761131444085,-1000.0,0.00032999,15]
[392059290,1761131444095,-1000.0,0.00032999,15]
[392059291,1761131444105,-204.0900688,0.00032999,15]
[392059292,1761131444115,-200.0,0.00032999,15]
[392059293,1761131444124,-910.01165925,0.00032999,15]
[392059294,1761131444134,-277.35679052,0.00032999,15]
[392059295,1761131444144,-1000.0,0.00032999,15]
[392059296,1761131444155,-226.83820996,0.00032999,15]
[392059297,1761131444164,-1000.0,0.00032999,15]
[392059298,1761131444174,-607.40723994,0.00032999,15]
[392059299,1761131444185,-392.59276006,0.00032999,15]
[392059300,1761131444198,-1000.0,0.00032999,15]
[392059301,1761131444207,-1000.0,0.00032999,15]
[392059302,1761131444216,-1000.0,0.00032999,15]
[392059303,1761131444226,-250.0,0.00032999,15]
[392059304,1761131444235,-1000.0,0.00032999,15]
[392059305,1761131444244,-1000.0,0.00032999,15]
[392059306,1761131444254,-250.0,0.00032999,15]
[392059307,1761131444263,-1000.0,0.00032999,15]
[392059308,1761131444272,-829.18204675,0.00032999,15]
[392059309,1761131444287,-170.81795325,0.00032999,15]
[392059310,1761131444297,-250.0,0.00032999,15]
[392059311,1761131444306,-1000.0,0.00032999,15]
[392059312,1761131444314,-337.71135948,0.00032999,15]
[392059313,1761131444325,-662.28864052,0.00032999,15]
[392059314,1761131444334,-413.41135948,0.00032999,15]
[392059315,1761131444344,-586.58864052,0.00032999,15]
[392059316,1761131444353,-250.0,0.00032999,15]
[392059317,1761131444362,-1000.0,0.00032999,15]
[392059318,1761131444371,-1000.0,0.00032999,15]
[392059319,1761131444380,-1000.0,0.00032999,15]
[392059320,1761131444390,-1000.0,0.00032999,15]
[392059321,1761131444398,-250.0,0.00032999,15]
[392059322,1761131444407,-40.27382611,0.00032999,15]
[392059323,1761131444419,-268.22572916,0.00032999,15]
[392059324,1761131444443,-691.50044473,0.00032999,15]
[392059325,1761131444452,-1000.0,0.00032999,15]
[392059326,1761131444461,-1000.0,0.00032999,15]
[392059327,1761131444470,-250.0,0.00032999,15]
[392059328,1761131444480,-1000.0,0.00032999,15]
[392059329,1761131444491,-500.0,0.00032999,15]
[392059330,1761131444500,-250.0,0.00032999,15]
[392059331,1761131444509,-1000.0,0.00032999,15]
[392059332,1761131444521,-1000.0,0.00032999,15]
[392059333,1761131444535,-500.0,0.00032999,15]
[392059334,1761131444544,-250.0,0.00032999,15]
[392059335,1761131444553,-1000.0,0.00032999,15]
[392059336,1761131444564,-500.0,0.00032999,15]
[392059337,1761131444578,-1000.0,0.00032999,15]
[392059338,1761131444587,-1000.0,0.00032999,15]
[392059339,1761131444598,-250.0,0.00032999,15]
[392059340,1761131444608,-1000.0,0.00032999,15]
[392059341,1761131444617,-1000.0,0.00032999,15]
[392059342,1761131444627,-250.0,0.00032999,15]
[392059343,1761131444635,-500.0,0.00032999,15]
[392059344,1761131444644,-1000.0,0.00032999,15]
[392059345,1761131444653,-1000.0,0.00032999,15]
[392059346,1761131444663,-250.0,0.00032999,15]
[392059347,1761131444672,-1000.0,0.00032999,15]
[392059348,1761131444681,-1000.0,0.00032999,15]
[392059349,1761131444692,-500.0,0.00032999,15]
[392059350,1761131444702,-1000.0,0.00032999,15]
[392059351,1761131444711,-500.0,0.00032999,15]
[392059352,1761131444721,-500.0,0.00032999,15]
[392059353,1761131444730,-500.0,0.00032999,15]
[392059354,1761131444739,-500.0,0.00032999,15]
[392059355,1761131444749,-500.0,0.00032999,15]
[392059356,1761131444758,-500.0,0.00032999,15]
[392059357,1761131444767,-600.0,0.00032999,15]
[392059358,1761131444777,-151.0,0.00032999,15]
[392059359,1761131444785,-600.0,0.00032999,15]
[392059360,1761131444795,-217.86016674,0.00032999,15]
[392059361,1761131444804,-600.0,0.00032999,15]
[392059362,1761131444813,-250.0,0.00032999,15]
[392059363,1761131444823,-600.0,0.00032999,15]
[392059364,1761131444831,-250.0,0.00032999,15]
[392059365,1761131444841,-600.0,0.00032999,15]
[392059366,1761131444850,-250.0,0.00032999,15]
[392059367,1761131444859,-628.54218543,0.00032999,15]
[392059368,1761131444868,-500.0,0.00032999,15]
[392059369,1761131444878,-250.0,0.00032999,15]
[392059370,1761131444887,-500.0,0.00032999,15]
[392059371,1761131444896,-250.0,0.00032999,15]
[392059372,1761131444905,-500.0,0.00032999,15]
[392059373,1761131444915,-250.0,0.00032999,15]
[392059374,1761131444924,-500.0,0.00032999,15]
[392059375,1761131444933,-250.0,0.00032999,15]
[392059376,1761131444944,-500.0,0.00032999,15]
[392059377,1761131444953,-250.0,0.00032999,15]
[392059378,1761131444963,-500.0,0.00032999,15]
[392059379,1761131444973,-200.0,0.00032999,15]
[392059380,1761131444982,-250.0,0.00032999,15]
[392059381,1761131444991,-500.0,0.00032999,15]
[392059382,1761131445000,-250.0,0.00032999,15]
[392059383,1761131445010,-500.0,0.00032999,15]
[392059384,1761131445019,-250.0,0.00032999,15]
[392059385,1761131445029,-500.0,0.00032999,15]
[392059386,1761131445039,-500.0,0.00032999,15]
[392059387,1761131445048,-500.0,0.00032999,15]
[392059388,1761131445057,-500.0,0.00032999,120]
[392059389,1761131445067,-776.74,0.00032999,120]
[392059390,1761131445076,-500.0,0.00032999,2]
[392059391,1761131445086,-27950.12116453,0.00033,15]
[392059392,1761131445098,-35755.8687072,0.00033,15]
[392059393,1761131445311,-2999.71857136,0.00033,15]
[392059394,1761131445327,-6667.61683668,0.00033,15]
[392059395,1761131445338,-283.8900961,0.00033,15]
[392059396,1761131445350,-975.25698273,0.00033,15]
[392059397,1761131445361,-7562.20000001,0.00033,15]
[392059398,1761131445374,-39574.50923367,0.00033,15]
[392059399,1761131445384,-716.76634777,0.00033,2]
[392059400,1761131445393,-150.0,0.00033,30]
[392059401,1761131445404,-150.0,0.00033,30]
[392059402,1761131445414,-200.0,0.00033,2]
[392059403,1761131445424,-200.0,0.00033,2]
[392059404,1761131445434,-443.0,0.00033043,2]
[392059405,1761131445445,-540.0,0.00033043,2]
[392059406,1761131445454,-211.67148352,0.00033057,2]
[392059407,1761131445464,-168.0,0.00033075,2]
[392059408,1761131445473,-871.58789562,0.00033077,2]
[392059409,1761131445482,-166.66,0.00033084,30]
[392059410,1761131445491,-658.89,0.00033095,7]
[392059411,1761131445502,-443.0,0.00033097,2]
[392059412,1761131445513,-540.0,0.00033097,2]
[392059413,1761131445522,-1357.15040626,0.00033134,2]
[392059414,1761131445532,-443.0,0.00033152,2]
[392059415,1761131445546,-540.0,0.00033152,2]
[392059416,1761131445555,-271.01,0.00033165,2]
[392059417,1761131445564,-443.0,0.00033207,2]
[392059418,1761131445575,-540.0,0.00033207,2]
[392059419,1761131445584,-63.33037442,0.00033241,2]
[392059420,1761131445620,-136.66962558,0.00033241,2]
[392059421,1761131445631,-443.0,0.00033262,2]
[392059422,1761131445642,-540.0,0.00033262,2]
[392059423,1761131445651,-1000.0,0.00033267,2]
[392059424,1761131445660,-314.96,0.000333,7]
[392059425,1761131445670,-2000.0,0.000333,2]
[392059426,1761131445684,-211.67148352,0.00033313,2]
[392059427,1761131445695,-443.0,0.00033316,2]
[392059428,1761131445704,-540.0,0.00033316,2]
[392059429,1761131445713,-200.0,0.0003333,2]
[392059430,1761131445723,-200.0,0.0003333,2]
[392059431,1761131445732,-1355.0,0.00033335,7]
[392059432,1761131445741,-301.17,0.00033359,2]
[392059433,1761131445751,-1357.15040626,0.00033363,2]
[392059434,1761131445760,-150.0,0.00033369,2]
[392059435,1761131445769,-658.89,0.00033369,7]
[392059436,1761131445910,-454.94634404,0.00033371,2]
[392059437,1761131445919,-541.01615528,0.00033371,2]
[392059438,1761131445928,-168.0,0.00033488,7]
[392059439,1761131445940,-169.06,0.00033563,2]
[392059440,1761131445949,-160.56398273,0.00033563,5]
[392059441,1761131445958,-211.67148352,0.00033569,2]
[392059442,1761131445967,-1357.15040626,0.00033591,2]
[392059443,1761131445976,-2004.38694932,0.00033604,6]
[392059444,1761131445986,-569.0,0.00033617,5]
[392059445,1761131445995,-179.0,0.00033631,7]
[392059446,1761131446005,-658.89,0.00033643,7]
[392059447,1761131446014,-152.0,0.00033654,3]
[392059448,1761131446023,-188.259,0.00033663,2]
[392059449,1761131446033,-150.0,0.00033663,2]
[392059450,1761131446043,-150.522,0.00033663,2]
[392059451,1761131446053,-200.0,0.00033663,2]
[392059452,1761131446062,-200.0,0.00033663,2]
[392059453,1761131446072,-817.0,0.00033663,2]
[392059455,1761131446082,-487.322,0.00033663,2]
[392059457,1761131446093,-6486.068,0.00033663,2]
[392059459,1761131446103,-2548.0,0.00033663,2]
[392059461,1761131446113,-1184.0,0.00033663,2]
[392059463,1761131446124,-160.56398267,0.00033692,5]
[392059466,1761131446133,-1000.0,0.0003375,2]
[392059469,1761131446142,-320.16882641,0.0003381,2]
[392059472,1761131446152,-1357.15040626,0.0003382,2]
[392059475,1761131446162,-160.56398267,0.00033821,6]
[392059478,1761131446172,-211.67148352,0.00033825,2]
[392059480,1761131446181,-168.0,0.00033842,2]
[392059482,1761131446194,-658.95992905,0.00033917,7]
[392059484,1761131446203,-500.0,0.00033923,2]
[392059486,1761131446212,-725.63,0.0003393,2]
[392059488,1761131446221,-160.56398267,0.00033949,6]
[392059490,1761131446231,-500.0,0.00033952,120]
[392059492,1761131446240,-776.74,0.00033972,120]
[392059495,1761131446250,-1999.0,0.00033972,120]
[392059498,1761131446259,-160.14775022,0.00033973,2]
[392059501,1761131446268,-168.0,0.00033989,2]